bitfinex/quotes_BTCUSD_20241004
["timestamp","ask_amount","ask_price","bid_price","bid_amount"]
[1728032220300,0.274271,61625.0,61624.0,0.00164]
[1728032220561,0.43871477,61625.0,61624.0,0.00164]
[1728032222589,0.274271,61625.0,61624.0,0.00164]
[1728032223350,0.52082715,61625.0,61624.0,0.00164]
[1728032223605,0.356371,61625.0,61624.0,0.00164]
[1728032227118,0.38181552,61625.0,61624.0,0.00164]
[1728032228124,0.29971552,61625.0,61624.0,0.00164]
[1728032228371,0.274271,61625.0,61624.0,0.00164]
[1728032231514,0.29971531,61625.0,61624.0,0.00164]
[1728032232728,0.274271,61625.0,61624.0,0.00164]
[1728032234399,0.262271,61625.0,61624.0,0.00164]
[1728032234639,0.273271,61625.0,61624.0,0.00164]
[1728032234872,0.265271,61625.0,61624.0,0.00164]
[1728032235107,0.271271,61625.0,61624.0,0.00164]
[1728032235593,0.29671556,61625.0,61624.0,0.00164]
[1728032239591,0.30763456,61625.0,61624.0,0.00164]
[1728032245106,0.40623456,61625.0,61624.0,0.00164]
[1728032245334,0.38079,61625.0,61624.0,0.00164]
[1728032245976,0.40623553,61625.0,61624.0,0.00164]
[1728032246505,0.40323553,61625.0,61624.0,0.00164]
[1728032246717,0.41023553,61625.0,61624.0,0.00164]
[1728032246932,0.40423553,61625.0,61624.0,0.00164]
[1728032247146,0.41523553,61625.0,61624.0,0.00164]
[1728032248914,0.38979,61625.0,61624.0,0.00164]
[1728032251784,0.41523591,61625.0,61624.0,0.00164]
[1728032257856,0.38979,61625.0,61624.0,0.00164]
[1728032258564,0.29119,61625.0,61624.0,0.00164]
[1728032260896,0.31663575,61625.0,61624.0,0.00164]
[1728032262049,0.29119,61625.0,61624.0,0.00164]
[1728032264220,0.28419,61625.0,61624.0,0.00164]
[1728032264426,0.27919,61625.0,61624.0,0.00164]
[1728032264863,0.28819,61625.0,61624.0,0.00164]
[1728032265075,0.31363535,61625.0,61624.0,0.00164]
[1728032265982,0.30763535,61625.0,61624.0,0.00164]
[1728032266215,0.31263535,61625.0,61624.0,0.00164]
[1728032267928,0.28719,61625.0,61624.0,0.00164]
[1728032275532,0.31263526,61625.0,61624.0,0.00164]
[1728032278717,0.28719,61625.0,61624.0,0.00164]
[1728032282014,0.31263507,61625.0,61624.0,0.00164]
[1728032290087,0.31263507,61625.0,61624.0,0.00136]
[1728032292849,0.276271,61625.0,61624.0,0.10076]
[1728032293034,0.276271,61625.0,61624.0,0.00136]
[1728032294373,0.271271,61625.0,61624.0,0.00136]
[1728032294586,0.262271,61625.0,61624.0,0.00136]
[1728032294773,0.264271,61625.0,61624.0,0.00136]
[1728032295039,0.28971473,61625.0,61624.0,0.00136]
[1728032295256,0.264271,61625.0,61624.0,0.00136]
[1728032295919,0.270271,61625.0,61624.0,0.00136]
[1728032296347,0.264271,61625.0,61624.0,0.00136]
[1728032297299,0.42884865,61625.0,61624.0,0.00136]
[1728032297735,0.264271,61625.0,61624.0,0.00136]
[1728032298151,0.42879012,61625.0,61624.0,0.00136]
[1728032298358,0.45423652,61625.0,61624.0,0.00136]
[1728032299968,0.28971518,61625.0,61624.0,0.00136]
[1728032300608,0.45424642,61625.0,61624.0,0.00136]
[1728032301253,0.28971518,61625.0,61624.0,0.00136]
[1728032301474,0.45424817,61625.0,61624.0,0.00136]
[1728032301908,0.45425615,61625.0,61624.0,0.00136]
[1728032302120,0.46125615,61625.0,61624.0,0.00136]
[1728032302578,0.28971518,61625.0,61624.0,0.00136]
[1728032303015,0.45325615,61625.0,61624.0,0.00136]
[1728032303470,0.29871518,61625.0,61624.0,0.00136]
[1728032303734,0.45325615,61625.0,61624.0,0.00136]
[1728032303949,0.42781197,61625.0,61624.0,0.00136]
[1728032304160,0.43181197,61625.0,61624.0,0.00136]
[1728032306162,0.267271,61625.0,61624.0,0.00136]
[1728032306754,0.43184083,61625.0,61624.0,0.00136]
[1728032307166,0.267271,61625.0,61624.0,0.00136]
[1728032307756,0.263271,61625.0,61624.0,0.00136]
[1728032308187,0.271271,61625.0,61624.0,0.00136]
[1728032308404,0.263271,61625.0,61624.0,0.00136]
[1728032308827,0.262271,61625.0,61624.0,0.00136]
[1728032309050,0.263909,61625.0,61624.0,0.00136]
[1728032309273,0.268909,61625.0,61624.0,0.00136]
[1728032309694,0.263909,61625.0,61624.0,0.00136]
[1728032310365,0.271909,61625.0,61624.0,0.00136]
[1728032310585,0.282909,61625.0,61624.0,0.00136]
[1728032311640,0.30835387,61625.0,61624.0,0.00136]
[1728032314266,0.282909,61625.0,61624.0,0.00136]
[1728032315140,0.377909,61625.0,61624.0,0.00136]
[1728032316204,0.40335398,61625.0,61624.0,0.00136]
[1728032317123,0.48365398,61625.0,61624.0,0.00136]
[1728032317354,0.458209,61625.0,61624.0,0.00136]
[1728032318021,0.450209,61625.0,61624.0,0.00136]
[1728032318464,0.464209,61625.0,61624.0,0.00136]
[1728032320652,0.48965454,61625.0,61624.0,0.00136]
[1728032321797,0.464209,61625.0,61624.0,0.00136]
[1728032322066,0.46393279,61625.0,61624.0,0.00136]
[1728032324986,0.48937828,61625.0,61624.0,0.00136]
[1728032326044,0.46393279,61625.0,61624.0,0.00136]
[1728032329043,0.48937808,61625.0,61624.0,0.00136]
[1728032329699,0.31407808,61625.0,61624.0,0.00136]
[1728032330378,0.28863279,61625.0,61624.0,0.00136]
[1728032330741,0.26363279,61625.0,61624.0,0.00136]
[1728032330963,0.28663279,61625.0,61624.0,0.00136]
[1728032332052,0.27563279,61625.0,61624.0,0.00136]
[1728032332310,0.28463279,61625.0,61624.0,0.00136]
[1728032333636,0.3100778,61625.0,61624.0,0.00136]
[1728032334692,0.4021778,61625.0,61624.0,0.00136]
[1728032335743,0.3100778,61625.0,61624.0,0.00136]
[1728032337771,0.4036778,61625.0,61624.0,0.00136]
[1728032338016,0.4805778,61625.0,61624.0,0.00136]
[1728032338234,0.45513279,61625.0,61624.0,0.00136]
[1728032341997,0.45485658,61625.0,61624.0,0.00136]
[1728032342209,0.45458079,61625.0,61624.0,0.00136]
[1728032342455,0.45435827,61625.0,61624.0,0.00136]
[1728032345728,0.47980397,61625.0,61624.0,0.00136]
[1728032346185,0.49072297,61625.0,61624.0,0.00136]
[1728032353112,0.46527727,61625.0,61624.0,0.00136]
[1728032354510,0.49072296,61625.0,61624.0,0.00136]
[1728032354736,0.46972296,61625.0,61624.0,0.00136]
[1728032355173,0.48972296,61625.0,61624.0,0.00136]
[1728032356258,0.48072296,61625.0,61624.0,0.00136]
[1728032356710,0.48872296,61625.0,61624.0,0.00136]
[1728032358968,0.46327727,61625.0,61624.0,0.00136]
[1728032365723,0.354274,61624.0,61623.0,1e-06]
[1728032366606,0.37972191,61624.0,61623.0,1e-06]
[1728032367067,0.38672191,61624.0,61623.0,1e-06]
[1728032367783,0.39872191,61624.0,61623.0,1e-06]
[1728032367999,0.62290655,61624.0,61623.0,1e-06]
[1728032368347,0.61290655,61624.0,61623.0,1e-06]
[1728032368763,0.62490655,61624.0,61623.0,1e-06]
[1728032368959,0.61790655,61624.0,61623.0,1e-06]
[1728032369166,0.62690655,61624.0,61623.0,1e-06]
[1728032369985,0.62690655,61624.0,61622.0,8.3e-07]
[1728032369986,0.361577,61623.0,61622.0,8.3e-07]
[1728032370196,0.363577,61623.0,61622.0,8.3e-07]
[1728032370651,0.264279,61622.0,61621.0,8.3e-07]
[1728032370860,0.6772654,61622.0,61621.0,8.3e-07]
[1728032372544,0.6872654,61622.0,61621.0,8.3e-07]
[1728032373421,0.447379,61622.0,61621.0,8.3e-07]
[1728032373638,0.61456571,61622.0,61621.0,8.3e-07]
[1728032374101,0.62856571,61622.0,61621.0,8.3e-07]
[1728032376535,0.86830231,61622.0,61621.0,8.3e-07]
[1728032377210,0.7051156,61622.0,61621.0,8.3e-07]
[1728032377632,0.49082815,61622.0,61621.0,8.3e-07]
[1728032377859,0.73053774,61622.0,61621.0,8.3e-07]
[1728032378143,0.73554031,61622.0,61621.0,8.3e-07]
[1728032378354,0.73553928,61622.0,61621.0,8.3e-07]
[1728032378580,0.89871144,61622.0,61621.0,8.3e-07]
[1728032378795,1.20926229,61622.0,61621.0,8.3e-07]
[1728032379007,1.19526229,61622.0,61621.0,8.3e-07]
[1728032379247,1.20926229,61622.0,61621.0,8.3e-07]
[1728032380114,1.22326229,61622.0,61621.0,8.3e-07]
[1728032380802,1.22326229,61622.0,61621.0,0.00081983]
[1728032381017,1.22326229,61622.0,61621.0,8.3e-07]
[1728032381248,1.22490029,61622.0,61621.0,8.3e-07]
[1728032381879,1.25034984,61622.0,61621.0,8.3e-07]
[1728032383221,1.22490029,61622.0,61621.0,8.3e-07]
[1728032383488,1.22485436,61622.0,61621.0,8.3e-07]
[1728032383711,0.264295,61616.0,61615.0,8.3e-07]
[1728032383923,0.262295,61616.0,61615.0,8.3e-07]
[1728032384373,0.1,61615.0,61607.0,0.24328927]
[1728032384588,0.1,61615.0,61605.0,0.09844]
[1728032384589,0.436303,61613.0,61612.0,1e-06]
[1728032384802,0.438303,61613.0,61612.0,1e-06]
[1728032385473,0.436303,61613.0,61612.0,1e-06]
[1728032385704,0.354103,61613.0,61612.0,1e-06]
[1728032386159,0.39255417,61613.0,61612.0,1e-06]
[1728032386419,0.63164088,61613.0,61612.0,1e-06]
[1728032386640,0.61864088,61613.0,61612.0,1e-06]
[1728032387134,0.63164088,61613.0,61612.0,1e-06]
[1728032387356,0.48345417,61613.0,61612.0,1e-06]
[1728032387584,0.47045417,61613.0,61612.0,1e-06]
[1728032388055,0.48445417,61613.0,61612.0,1e-06]
[1728032388310,0.47145417,61613.0,61612.0,1e-06]
[1728032388545,0.48545417,61613.0,61612.0,1e-06]
[1728032388768,0.64864088,61613.0,61612.0,1e-06]
[1728032390715,0.62318971,61613.0,61612.0,1e-06]
[1728032391658,0.264311,61610.0,61609.0,0.00731966]
[1728032391910,0.35888671,61613.0,61599.0,0.090127]
[1728032391911,0.262337,61600.0,61599.0,0.090127]
[1728032392371,0.262337,61600.0,61599.0,0.090027]
[1728032392603,0.262337,61600.0,61599.0,0.089527]
[1728032393061,0.262337,61600.0,61599.0,0.089127]
[1728032393298,0.262337,61600.0,61599.0,0.088827]
[1728032393547,0.262337,61600.0,61599.0,0.088627]
[1728032393796,0.262337,61600.0,61599.0,0.088527]
[1728032394033,0.29278997,61600.0,61599.0,0.088027]
[1728032394260,0.28778997,61600.0,61599.0,0.087727]
[1728032394499,0.29378997,61600.0,61599.0,0.087727]
[1728032394769,0.29678997,61600.0,61599.0,0.087527]
[1728032395005,0.29678997,61600.0,61599.0,0.086927]
[1728032395227,0.29378997,61600.0,61599.0,0.086827]
[1728032395446,0.29778997,61600.0,61599.0,0.086727]
[1728032395672,0.29778997,61600.0,61599.0,0.086227]
[1728032395888,0.29778997,61600.0,61599.0,0.086127]
[1728032396317,0.29778997,61600.0,61599.0,0.086027]
[1728032396757,0.262345,61597.0,61594.0,0.083]
[1728032398101,0.29079865,61597.0,61594.0,0.083]
[1728032398342,0.29179865,61597.0,61594.0,0.083]
[1728032399480,0.29179865,61597.0,61596.0,0.097538]
[1728032401568,0.266345,61597.0,61596.0,0.097538]
[1728032402021,0.266345,61597.0,61596.0,0.172938]
[1728032403429,0.266345,61597.0,61596.0,0.001638]
[1728032403645,0.266345,61597.0,61596.0,0.169138]
[1728032403903,0.263345,61597.0,61596.0,0.169138]
[1728032404148,0.262345,61597.0,61596.0,0.169138]
[1728032404372,0.263345,61597.0,61596.0,0.169138]
[1728032405061,0.262345,61597.0,61596.0,0.169138]
[1728032405281,0.265345,61597.0,61596.0,0.17737274]
[1728032406631,0.262345,61597.0,61596.0,0.17737274]
[1728032410686,0.28779807,61597.0,61596.0,0.17737274]
[1728032411366,0.43385413,61597.0,61596.0,0.17737274]
[1728032412249,0.43357752,61597.0,61596.0,0.17737274]
[1728032414020,0.28752146,61597.0,61596.0,0.17737274]
[1728032415155,0.28752146,61597.0,61596.0,0.00987274]
[1728032415156,0.61311073,61597.0,61596.0,0.00987274]
[1728032415401,0.36982146,61597.0,61596.0,0.00987274]
[1728032415636,0.34436839,61597.0,61596.0,0.00987274]
[1728032418554,0.35936839,61597.0,61596.0,0.00987274]
[1728032418679,0.38482488,61597.0,61596.0,0.00987274]
[1728032418875,0.30252488,61597.0,61596.0,0.00987274]
[1728032419106,0.29652488,61597.0,61596.0,0.00987274]
[1728032419320,0.30352488,61597.0,61596.0,0.00987274]
[1728032419750,0.29452488,61597.0,61596.0,0.00987274]
[1728032420175,0.30452488,61597.0,61596.0,0.00987274]
[1728032420378,0.29452488,61597.0,61596.0,0.00987274]
[1728032420589,0.28752488,61597.0,61596.0,0.00987274]
[1728032420816,0.29252488,61597.0,61596.0,0.00987274]
[1728032421226,0.30252488,61597.0,61596.0,0.00987274]
[1728032421441,0.28752488,61597.0,61596.0,0.00987274]
[1728032421703,0.29752488,61597.0,61596.0,0.00987274]
[1728032423788,0.81279908,61597.0,61596.0,0.001638]
[1728032424026,0.47122488,61597.0,61596.0,0.001638]
[1728032424256,0.44576839,61597.0,61596.0,0.001638]
[1728032424494,0.44176839,61597.0,61596.0,0.001638]
[1728032424728,0.43576839,61597.0,61596.0,0.001638]
[1728032424949,0.45876839,61597.0,61596.0,0.001638]
[1728032425439,0.262348,61596.0,61595.0,5.8e-07]
[1728032425729,0.262353,61594.0,61591.0,0.001638]
[1728032427621,0.30181389,61594.0,61591.0,0.001638]
[1728032428113,0.31281389,61594.0,61591.0,0.001638]
[1728032429129,0.4760006,61594.0,61591.0,0.001638]
[1728032429399,0.4760006,61594.0,61574.0,0.080638]
[1728032429400,0.262385,61582.0,61578.0,0.24328927]
[1728032429861,0.262385,61582.0,61581.0,0.01419613]
[1728032430081,0.28784847,61582.0,61581.0,0.0002]
[1728032430294,0.4522122,61582.0,61581.0,0.0002]
[1728032430774,0.4622122,61582.0,61581.0,0.0002]
[1728032430995,0.29784847,61582.0,61581.0,0.0002]
[1728032431439,0.30484847,61582.0,61581.0,0.0002]
[1728032431706,0.47744847,61582.0,61581.0,0.0002]
[1728032432193,0.262403,61575.0,61574.0,0.001638]
[1728032432679,0.42665353,61575.0,61574.0,0.001638]
[1728032432918,0.28787019,61575.0,61574.0,0.001638]
[1728032433634,0.4520196,61575.0,61574.0,0.001638]
[1728032433865,0.28787019,61575.0,61574.0,0.001638]
[1728032434764,0.31387019,61575.0,61574.0,0.001638]
[1728032435915,0.288403,61575.0,61574.0,0.001638]
[1728032436389,0.31386909,61575.0,61574.0,0.001638]
[1728032438698,0.31386909,61575.0,61574.0,0.00972119]
[1728032438916,0.30186909,61575.0,61574.0,0.001638]
[1728032439133,0.42325555,61575.0,61574.0,0.001638]
[1728032439355,0.28786909,61575.0,61574.0,0.001638]
[1728032439585,0.36068766,61575.0,61574.0,0.001638]
[1728032439811,0.36268766,61575.0,61574.0,0.001638]
[1728032440264,0.29486909,61575.0,61574.0,0.001638]
[1728032440749,0.36268766,61575.0,61574.0,0.001638]
[1728032441037,0.33841197,61575.0,61574.0,0.001638]
[1728032443910,0.263403,61575.0,61574.0,0.001638]
[1728032444355,0.28886863,61575.0,61574.0,0.001638]
[1728032444580,0.36168746,61575.0,61574.0,0.001638]
[1728032445294,0.33622183,61575.0,61574.0,0.001638]
[1728032446887,0.263403,61575.0,61574.0,0.001638]
[1728032448366,0.263403,61575.0,61574.0,0.00979513]
[1728032448603,0.28886964,61575.0,61574.0,0.001638]
[1728032450693,0.41026849,61575.0,61574.0,0.001638]
[1728032452084,0.60055802,61575.0,61574.0,0.001638]
[1728032452279,0.67785802,61575.0,61574.0,0.001638]
[1728032452530,0.65239138,61575.0,61574.0,0.001638]
[1728032452751,0.262435,61563.0,61562.0,0.000819]
[1728032453195,0.262435,61563.0,61562.0,0.01499755]
[1728032453420,0.262435,61563.0,61562.0,0.000819]
[1728032454282,0.263435,61563.0,61562.0,0.000819]
[1728032454504,0.264435,61563.0,61562.0,0.001819]
[1728032455200,0.263435,61563.0,61562.0,0.001819]
[1728032455590,0.264435,61563.0,61562.0,0.001819]
[1728032455817,0.28890393,61563.0,61562.0,0.000819]
[1728032456031,0.28890393,61563.0,61562.0,0.001819]
[1728032456498,0.28890393,61563.0,61562.0,0.000819]
[1728032456940,0.28790393,61563.0,61562.0,0.000819]
[1728032457163,0.36083305,61563.0,61562.0,0.000819]
[1728032458075,0.34324354,61563.0,61562.0,0.099519]
[1728032458300,0.34324354,61563.0,61562.0,0.177919]
[1728032458744,0.31777461,61563.0,61562.0,0.177919]
[1728032460577,0.05659912,61563.0,61562.0,0.200919]
[1728032460812,0.21903412,61563.0,61562.0,0.200919]
[1728032461036,0.21903412,61563.0,61562.0,0.19210357]
[1728032461271,0.21903412,61563.0,61562.0,0.177919]
[1728032461957,0.21903412,61563.0,61562.0,0.1858789]
[1728032462187,0.22003412,61563.0,61562.0,0.1868789]
[1728032462417,0.22103412,61563.0,61562.0,0.1878789]
[1728032462606,0.22003412,61563.0,61562.0,0.1868789]
[1728032462855,0.21903412,61563.0,61562.0,0.1868789]
[1728032464416,0.22003412,61563.0,61562.0,0.1868789]
[1728032467244,0.24550078,61563.0,61562.0,0.1868789]
[1728032468365,0.2687634,61563.0,61562.0,0.1868789]
[1728032468604,0.0822184,61563.0,61562.0,0.1868789]
[1728032469062,0.05513999,61563.0,61562.0,0.1868789]
[1728032469297,0.05413999,61563.0,61562.0,0.20048302]
[1728032469515,0.03381999,61563.0,61562.0,0.1868789]
[1728032469739,0.03381999,61563.0,61562.0,0.20148302]
[1728032470697,0.00953999,61563.0,61562.0,0.20148302]
[1728032470889,0.00953999,61563.0,61562.0,0.19352312]
[1728032471560,0.14774399,61564.0,61562.0,0.19352312]
[1728032472531,0.56813927,61567.0,61562.0,0.19352312]
[1728032472757,0.162434,61564.0,61562.0,0.19252312]
[1728032472974,0.001,61564.0,61562.0,0.20252312]
[1728032473214,0.162435,61563.0,61562.0,0.21052312]
[1728032473452,0.163433,61564.0,61562.0,0.20252312]
[1728032474764,0.163433,61564.0,61562.0,0.20752312]
[1728032474984,0.162433,61564.0,61562.0,0.19252312]
[1728032475312,0.001,61564.0,61562.0,0.20452312]
[1728032475745,0.163434,61564.0,61562.0,0.19852312]
[1728032476140,0.55367927,61567.0,61562.0,0.20452312]
[1728032476367,0.09749356,61569.0,61564.0,0.002]
[1728032476591,0.05271008,61569.0,61566.0,0.1822]
[1728032477056,0.00205402,61568.0,61567.0,0.1822]
[1728032477273,0.05271008,61569.0,61567.0,0.19676823]
[1728032477864,0.05271008,61569.0,61568.0,0.1725]
[1728032478097,0.00794552,61569.0,61568.0,0.1955]
[1728032478292,0.09723061,61571.0,61568.0,0.21006235]
[1728032478871,0.162419,61569.0,61568.0,0.18706235]
[1728032479275,0.163419,61569.0,61568.0,0.19706235]
[1728032479526,0.163419,61569.0,61568.0,0.1785]
[1728032479757,0.162419,61569.0,61568.0,0.18906235]
[1728032479980,0.162419,61569.0,61568.0,0.19306235]
[1728032480438,0.162419,61569.0,61568.0,0.02056235]
[1728032480668,0.162419,61569.0,61568.0,0.006]
[1728032481115,0.162419,61569.0,61568.0,0.004]
[1728032481351,0.16160682,61569.0,61568.0,0.004]
[1728032481569,0.35029023,61572.0,61568.0,0.1821]
[1728032481570,0.02546323,61572.0,61568.0,0.1821]
[1728032481792,0.324831,61571.0,61568.0,0.1741]
[1728032482019,0.162419,61569.0,61568.0,0.1741]
[1728032482250,0.164419,61569.0,61568.0,0.1961]
[1728032482472,0.163419,61569.0,61568.0,0.20066235]
[1728032482666,0.162419,61569.0,61568.0,0.19266235]
[1728032482862,0.162416,61570.0,61568.0,0.19766235]
[1728032483089,0.162416,61570.0,61568.0,0.19366235]
[1728032483305,0.324833,61571.0,61568.0,0.18866235]
[1728032483528,0.162419,61570.0,61568.0,0.18866235]
[1728032483747,0.162419,61570.0,61568.0,0.19566235]
[1728032483960,0.162416,61570.0,61568.0,0.19566235]
[1728032484308,0.162419,61569.0,61568.0,0.19566235]
[1728032484933,0.163419,61569.0,61568.0,0.20266235]
[1728032485135,0.163419,61569.0,61568.0,0.1881]
[1728032485261,0.163419,61569.0,61568.0,0.20266235]
[1728032485466,0.163419,61569.0,61568.0,0.19566235]
[1728032485737,0.163419,61569.0,61568.0,0.20066235]
[1728032485960,0.001,61569.0,61568.0,0.20066235]
[1728032486385,0.001,61569.0,61568.0,0.19566235]
[1728032486594,0.163419,61569.0,61568.0,0.20266235]
[1728032487238,0.001,61569.0,61568.0,0.20266235]
[1728032487405,0.163419,61569.0,61568.0,0.20266235]
[1728032488409,0.14431362,61569.0,61568.0,0.20266235]
[1728032489034,0.324818,61573.0,61568.0,0.20266235]
[1728032489247,0.162419,61569.0,61568.0,0.20266235]
[1728032490016,0.162419,61569.0,61568.0,0.19566235]
[1728032490230,0.164059,61569.0,61568.0,0.19966235]
[1728032491509,0.00164,61569.0,61568.0,0.19966235]
[1728032491764,0.00164,61569.0,61568.0,0.19566235]
[1728032492012,0.324806,61576.0,61568.0,0.20366235]
[1728032492244,0.324799,61577.0,61569.0,0.023]
[1728032492687,0.162408,61574.0,61571.0,0.023]
[1728032493119,0.324807,61575.0,61572.0,0.01453552]
[1728032493354,0.162408,61573.0,61572.0,0.01453552]
[1728032494399,0.001,61574.0,61572.0,0.01453552]
[1728032494856,0.162408,61573.0,61572.0,0.01453552]
[1728032495082,0.001,61574.0,61572.0,0.17694452]
[1728032495295,0.324767,61583.0,61572.0,0.17694452]
[1728032495296,0.10164,61582.0,61574.0,0.1189]
[1728032495507,0.24492927,61581.0,61577.0,0.162398]
[1728032495720,0.17806206,61581.0,61576.0,0.023]
[1728032495969,0.164026,61582.0,61578.0,0.01447715]
[1728032496190,0.16239,61580.0,61577.0,0.01648303]
[1728032496425,0.16239,61580.0,61576.0,0.023]
[1728032496426,0.162388,61581.0,61579.0,0.01447127]
[1728032496645,0.162388,61581.0,61580.0,0.023]
[1728032496866,0.162388,61581.0,61580.0,0.03746539]
[1728032497970,0.00164,61582.0,61580.0,0.03746539]
[1728032498194,0.00164,61582.0,61581.0,0.1721]
[1728032498394,0.00164,61582.0,61581.0,0.357487]
[1728032498654,0.00164,61582.0,61581.0,0.37030636]
[1728032498882,0.00164,61582.0,61581.0,0.20591936]
[1728032499101,0.00164,61582.0,61581.0,0.11081936]
[1728032499102,0.164025,61582.0,61581.0,0.11081936]
[1728032499748,0.165025,61582.0,61581.0,0.12181936]
[1728032499970,0.164025,61582.0,61581.0,0.11081936]
[1728032500182,0.165025,61582.0,61581.0,0.13281936]
[1728032500616,0.165025,61582.0,61581.0,0.12181936]
[1728032500832,0.165025,61582.0,61581.0,0.111]
[1728032501074,0.165025,61582.0,61581.0,0.13841992]
[1728032501523,0.164025,61582.0,61581.0,0.12741992]
[1728032501932,0.165025,61582.0,61581.0,0.13841992]
[1728032502156,0.164025,61582.0,61581.0,0.12741992]
[1728032502403,0.16374879,61582.0,61581.0,0.14041992]
[1728032502617,0.16474879,61582.0,61581.0,0.14041992]
[1728032503027,0.16474879,61582.0,61581.0,0.12571288]
[1728032503236,0.16474879,61582.0,61581.0,0.04871288]
[1728032504539,0.1483846,61582.0,61581.0,0.04871288]
[1728032506092,0.1483846,61582.0,61581.0,0.03429296]
[1728032506552,0.1483846,61582.0,61581.0,0.04871585]
[1728032506785,0.1483846,61582.0,61581.0,0.03429296]
[1728032507004,0.1483846,61582.0,61581.0,0.04871556]
[1728032508643,0.001,61582.0,61581.0,0.04510565]
[1728032509307,0.001,61582.0,61581.0,0.06810565]
[1728032510582,0.163385,61582.0,61581.0,0.06810565]
[1728032513001,0.163385,61582.0,61581.0,0.04506158]
[1728032513441,0.163385,61582.0,61581.0,0.03424889]
[1728032515121,0.163385,61582.0,61581.0,0.04505983]
[1728032515335,0.163385,61582.0,61581.0,0.04587983]
[1728032517260,0.165025,61582.0,61581.0,0.04587983]
[1728032518524,0.00264,61582.0,61581.0,0.04587983]
[1728032519385,0.165025,61582.0,61581.0,0.04587983]
[1728032519808,0.00264,61582.0,61581.0,0.04587983]
[1728032520017,0.165025,61582.0,61581.0,0.04587983]
[1728032520458,0.00264,61582.0,61581.0,0.06887983]
[1728032520894,0.00264,61582.0,61581.0,0.23126683]
[1728032521543,0.00264,61582.0,61581.0,0.06887983]
[1728032522042,0.00264,61582.0,61581.0,0.23326683]
[1728032523152,0.00264,61582.0,61581.0,0.23126683]
[1728032524024,0.162373,61587.0,61583.0,0.023]
[1728032524236,0.162377,61585.0,61583.0,0.023]
[1728032524495,0.162377,61585.0,61581.0,0.19997287]
[1728032524496,0.162379,61584.0,61582.0,0.023]
[1728032525145,0.162379,61584.0,61581.0,0.02382]
[1728032525388,0.162379,61584.0,61583.0,0.031]
[1728032525586,0.162379,61584.0,61583.0,0.041]
[1728032525808,0.162379,61584.0,61581.0,0.02382]
[1728032526030,0.163379,61584.0,61583.0,0.023]
[1728032526465,0.162379,61584.0,61583.0,0.023]
[1728032526704,0.163379,61584.0,61583.0,0.037]
[1728032527391,0.001,61584.0,61583.0,0.037]
[1728032528038,0.001,61584.0,61583.0,0.0477942]
[1728032528556,0.001,61584.0,61583.0,0.0617942]
[1728032529483,0.002638,61584.0,61583.0,0.2241762]
[1728032529729,0.002638,61584.0,61583.0,0.3924762]
[1728032530743,0.21103995,61594.0,61583.0,0.3924762]
[1728032530744,0.162358,61593.0,61589.0,0.023]
[1728032530954,0.162358,61593.0,61590.0,0.17312635]
[1728032531178,0.324696,61596.0,61591.0,0.1183]
[1728032531399,0.162345,61597.0,61591.0,0.1947]
[1728032531624,0.162345,61597.0,61593.0,0.023]
[1728032531625,0.145927,61597.0,61593.0,0.023]
[1728032531859,0.12949032,61597.0,61593.0,0.185355]
[1728032532110,0.12949032,61597.0,61594.0,0.01074573]
[1728032532111,0.162345,61597.0,61594.0,0.01074573]
[1728032532339,0.00164,61599.0,61594.0,0.17309773]
[1728032532557,0.324696,61597.0,61594.0,0.01074573]
[1728032532785,0.16235,61595.0,61594.0,0.03374573]
[1728032533926,0.16235,61595.0,61584.0,0.326758]
[1728032533927,0.324743,61588.0,61584.0,0.023]
[1728032534157,0.324744,61587.0,61585.0,0.01078538]
[1728032534378,0.162375,61586.0,61585.0,0.023]
[1728032534636,0.162375,61586.0,61585.0,0.03378538]
[1728032535295,0.162375,61586.0,61585.0,0.04778538]
[1728032535734,0.324743,61588.0,61586.0,0.023]
[1728032535975,0.162372,61587.0,61586.0,0.023]
[1728032536421,0.324743,61588.0,61582.0,0.162383]
[1728032536642,0.162374,61586.0,61583.0,0.023]
[1728032537323,0.162361,61591.0,61587.0,0.162371]
[1728032537546,0.162365,61590.0,61586.0,0.162373]
[1728032537770,0.162368,61589.0,61587.0,0.023]
[1728032538211,0.162368,61589.0,61586.0,0.023]
[1728032538481,0.324725,61591.0,61587.0,0.014]
[1728032538638,0.162369,61588.0,61587.0,0.037]
[1728032538853,0.162369,61588.0,61587.0,0.023]
[1728032539073,0.04868595,61594.0,61587.0,0.023]
[1728032539298,0.162362,61591.0,61587.0,0.037]
[1728032539541,0.162364,61590.0,61587.0,0.051]
[1728032539814,0.162364,61590.0,61589.0,0.023]
[1728032540040,0.162366,61589.0,61588.0,0.023]
[1728032540481,0.162369,61588.0,61587.0,0.014]
[1728032541166,0.162369,61588.0,61587.0,0.028]
[1728032542076,0.162369,61588.0,61587.0,0.014]
[1728032542316,0.21105495,61588.0,61587.0,0.014]
[1728032543041,0.21105495,61588.0,61587.0,0.028]
[1728032546830,0.21110584,61588.0,61587.0,0.028]
[1728032547257,0.162369,61588.0,61587.0,0.028]
[1728032547514,0.23547426,61588.0,61587.0,0.028]
[1728032547734,0.23547426,61588.0,61587.0,0.03598507]
[1728032549066,0.162369,61588.0,61587.0,0.03598507]
[1728032549693,0.162369,61588.0,61587.0,0.02198507]
[1728032550165,0.162369,61588.0,61587.0,0.03598507]
[1728032551003,0.162369,61588.0,61587.0,0.02198507]
[1728032551547,0.162369,61588.0,61587.0,0.03598507]
[1728032552004,0.162369,61588.0,61587.0,0.02198507]
[1728032552005,0.339469,61588.0,61587.0,0.02198507]
[1728032552463,0.339469,61588.0,61587.0,0.03598507]
[1728032555186,0.4649266,61588.0,61587.0,0.03680407]
[1728032560484,0.46909415,61588.0,61587.0,0.03680407]
[1728032560711,0.44363655,61588.0,61587.0,0.03680407]
[1728032561991,0.439469,61588.0,61587.0,0.03680407]
[1728032566885,0.46492757,61588.0,61587.0,0.03680407]
[1728032567109,0.439469,61588.0,61587.0,0.03680407]
[1728032570785,0.43926202,61588.0,61587.0,0.03680407]
[1728032573142,0.5853401,61588.0,61587.0,0.03680407]
[1728032573792,0.5853401,61588.0,61587.0,0.02280407]